bitfinex-derivatives/quotes_BTCF0:USTF0_20250811
["timestamp","ask_amount","ask_price","bid_price","bid_amount"]
[1754932485350,0.70262064,120030.0,120020.0,4.25728922]
[1754932485556,0.70670064,120030.0,120020.0,4.25728922]
[1754932485860,0.73667064,120030.0,120020.0,4.25728922]
[1754932486059,0.71210598,120030.0,120020.0,4.25728922]
[1754932486562,0.71323298,120030.0,120020.0,4.25728922]
[1754932486754,0.70671298,120030.0,120020.0,4.25728922]
[1754932489652,0.72341298,120030.0,120020.0,4.25728922]
[1754932489860,0.77089298,120030.0,120020.0,4.15548572]
[1754932490265,0.93752498,120030.0,120020.0,4.00879002]
[1754932490468,0.93752498,120030.0,120020.0,4.03167002]
[1754932490662,0.77089298,120030.0,120020.0,3.94271947]
[1754932490964,0.93752498,120030.0,120020.0,3.42482616]
[1754932491159,0.93752498,120030.0,120020.0,3.01647915]
[1754932491465,0.93752498,120030.0,120020.0,2.23723565]
[1754932491660,0.90342498,120030.0,120020.0,1.65834479]
[1754932491860,0.93752498,120030.0,120020.0,1.01876873]
[1754932492057,0.93752498,120030.0,120020.0,0.13752092]
[1754932492257,0.0833284,120010.0,120000.0,0.02288]
[1754932492451,0.59569749,120010.0,120000.0,0.07628]
[1754932492662,0.62031135,120010.0,120000.0,0.07628]
[1754932493057,0.68645916,120010.0,120000.0,0.07628]
[1754932494362,0.68645916,120010.0,120000.0,0.13549]
[1754932494566,0.68655916,120010.0,120000.0,0.13559]
[1754932496457,0.4166901,120000.0,119990.0,0.05921]
[1754932496660,1.42391744,120000.0,119990.0,0.06797]
[1754932496960,1.4238681,120000.0,119990.0,0.0534]
[1754932497265,0.2501054,119960.0,119940.0,0.63097079]
[1754932497464,0.1667363,119960.0,119950.0,0.51761909]
[1754932497668,0.2500788,119970.0,119950.0,0.71119529]
[1754932497870,0.2501788,119970.0,119960.0,0.49105219]
[1754932498064,0.2501788,119970.0,119960.0,0.46108909]
[1754932498272,0.2501868,119970.0,119960.0,0.54445219]
[1754932498458,0.2501868,119970.0,119960.0,0.46108909]
[1754932499164,0.00949028,119970.0,119960.0,0.59445219]
[1754932499365,0.0011,119970.0,119960.0,0.97530128]
[1754932499569,0.0011,119970.0,119960.0,1.14201328]
[1754932500069,1.51166076,119970.0,119960.0,0.67780109]
[1754932500369,2.00365595,119970.0,119960.0,0.08024]
[1754932500562,1.65696686,119970.0,119960.0,0.08024]
[1754932501062,1.62280686,119970.0,119960.0,0.08024]
[1754932501667,1.59501686,119970.0,119960.0,0.46108909]
[1754932501866,1.61965601,119970.0,119960.0,0.46108909]
[1754932502066,1.64744601,119970.0,119960.0,0.46108909]
[1754932502275,1.64744601,119970.0,119960.0,0.08024]
[1754932502772,1.64744601,119970.0,119960.0,0.46108909]
[1754932502966,1.62280686,119970.0,119960.0,0.46108909]
[1754932503168,1.62280686,119970.0,119960.0,0.43424909]
[1754932503477,1.67863686,119970.0,119960.0,0.43424909]
[1754932503771,1.62280686,119970.0,119960.0,0.43424909]
[1754932504977,1.62180686,119970.0,119960.0,0.43524909]
[1754932505170,1.62180686,119970.0,119960.0,0.11565]
[1754932505579,1.61980686,119970.0,119960.0,0.11565]
[1754932505782,1.61980686,119970.0,119960.0,0.11665]
[1754932506279,1.67563686,119970.0,119960.0,0.11765]
[1754932508169,2.05648595,119970.0,119960.0,0.11765]
[1754932508380,1.67563686,119970.0,119960.0,0.09081]
[1754932508679,2.05648595,119970.0,119960.0,0.003]
[1754932509077,2.19468595,119970.0,119960.0,0.003]
[1754932509575,2.2193829,119970.0,119960.0,0.003]
[1754932509773,0.0833631,119960.0,119950.0,0.0001]
[1754932509979,0.98264128,119960.0,119950.0,0.0001]
[1754932510278,1.12084128,119960.0,119950.0,0.0001]
[1754932510474,0.38382638,119960.0,119950.0,0.0001]
[1754932510681,0.76467547,119960.0,119950.0,0.0001]
[1754932511166,1.14552456,119960.0,119950.0,0.0001]
[1754932511571,0.76467547,119960.0,119950.0,0.0001]
[1754932511972,0.24562638,119960.0,119950.0,0.43179909]
[1754932512167,0.2209431,119960.0,119950.0,0.1122]
[1754932512579,0.2209431,119960.0,119950.0,0.56022065]
[1754932512779,0.2209431,119960.0,119950.0,0.08536]
[1754932512982,0.2209431,119960.0,119950.0,0.04889]
[1754932513579,0.2209431,119960.0,119950.0,0.0031]
[1754932513771,0.66896375,119960.0,119950.0,0.0031]
[1754932513973,0.66896375,119960.0,119950.0,0.0041]
[1754932514583,0.083377,119940.0,119930.0,0.0001]
[1754932514783,0.220957,119940.0,119930.0,0.03861]
[1754932514977,0.220957,119940.0,119930.0,0.09201]
[1754932515182,0.220957,119940.0,119930.0,0.11885]
[1754932515870,0.220957,119940.0,119930.0,0.12385]
[1754932516073,0.221057,119940.0,119930.0,0.12395]
[1754932516383,0.221057,119940.0,119930.0,0.02406]
[1754932516581,0.221057,119940.0,119930.0,0.04671]
[1754932517478,0.221057,119940.0,119930.0,0.02406]
[1754932518278,0.221057,119940.0,119930.0,0.0082]
[1754932518584,0.73595106,119940.0,119930.0,0.0082]
[1754932518786,0.28793041,119940.0,119930.0,0.0082]
[1754932519082,0.28793041,119940.0,119930.0,0.13735]
[1754932519278,0.28793041,119940.0,119930.0,0.08511]
[1754932519879,0.28793041,119940.0,119930.0,0.08311]
[1754932520075,0.28793041,119940.0,119930.0,0.10762]
[1754932520388,0.28793041,119940.0,119930.0,0.13435]
[1754932520686,0.28793041,119940.0,119930.0,0.10462]
[1754932520884,0.28793041,119940.0,119930.0,0.10762]
[1754932521584,0.28793041,119940.0,119930.0,0.10462]
[1754932521884,0.28793041,119940.0,119930.0,0.13635]
[1754932522074,0.28793041,119940.0,119930.0,0.10862]
[1754932522279,0.28793041,119940.0,119930.0,0.55664065]
[1754932522480,0.17814041,119940.0,119930.0,0.66775455]
[1754932522879,0.06697341,119940.0,119930.0,0.88451455]
[1754932523383,0.15035031,119940.0,119930.0,0.83451455]
[1754932523688,1.65035031,119940.0,119930.0,0.83451455]
[1754932525891,1.65035031,119940.0,119930.0,0.75113065]
[1754932526089,1.69362031,119940.0,119930.0,0.30311]
[1754932526290,1.73116031,119940.0,119930.0,0.75113065]
[1754932526584,1.76549031,119940.0,119930.0,0.75113065]
[1754932526788,1.76549031,119940.0,119930.0,0.30311]
[1754932526985,1.76549031,119940.0,119930.0,0.58437065]
[1754932527184,1.76549031,119940.0,119930.0,0.13635]
[1754932527390,1.76549031,119940.0,119930.0,0.58437065]
[1754932527690,1.76549031,119940.0,119930.0,0.10862]
[1754932527894,1.76549031,119940.0,119930.0,0.0072]
[1754932531195,2.21351096,119940.0,119930.0,0.0072]
[1754932531389,1.76549031,119940.0,119930.0,0.0072]
[1754932531998,0.166798,119910.0,119900.0,0.44802065]
[1754932532188,0.358228,119910.0,119900.0,0.52430065]
[1754932533384,0.36678637,119910.0,119900.0,0.52430065]
[1754932533590,0.36788637,119910.0,119900.0,0.52440065]
[1754932533987,0.36688637,119910.0,119900.0,0.52440065]
[1754932534296,0.36688637,119910.0,119900.0,0.52640065]
[1754932534498,0.36688637,119910.0,119900.0,0.60980535]
[1754932534991,0.36688637,119910.0,119900.0,0.1895147]
[1754932535199,0.36688637,119910.0,119900.0,0.55413065]
[1754932535587,0.36688637,119910.0,119900.0,0.10411]
[1754932535791,0.36788637,119910.0,119900.0,0.55213065]
[1754932536792,0.36788637,119910.0,119900.0,0.07638]
[1754932536989,0.36788637,119910.0,119900.0,0.01313843]
[1754932537590,0.36788637,119910.0,119900.0,0.0001]
[1754932537792,0.81590702,119910.0,119900.0,0.0001]
[1754932538196,0.0834047,119900.0,119890.0,8e-05]
[1754932538396,0.72285535,119900.0,119890.0,8e-05]
[1754932538702,0.2748347,119900.0,119890.0,8e-05]
[1754932539793,0.2778347,119900.0,119890.0,0.52448065]
[1754932540098,0.2779347,119900.0,119890.0,0.07656]
[1754932540293,0.2779347,119900.0,119890.0,0.00018]
[1754932540604,0.2809347,119900.0,119890.0,0.00018]
[1754932542195,0.72895535,119900.0,119890.0,0.00018]
[1754932542396,0.2809347,119900.0,119890.0,0.00018]
[1754932542797,0.2809347,119900.0,119890.0,0.47082065]
[1754932543097,0.2809347,119900.0,119890.0,0.07656]
[1754932543304,0.2809347,119900.0,119890.0,0.52458065]
[1754932543509,0.2809347,119900.0,119890.0,0.07656]
[1754932543815,0.2809347,119900.0,119890.0,0.00018]
[1754932544213,0.2809347,119900.0,119890.0,0.07656]
[1754932544510,0.2809347,119900.0,119890.0,0.55231065]
[1754932544711,0.1544847,119900.0,119890.0,0.55231065]
[1754932544909,0.1327747,119900.0,119890.0,0.55231065]
[1754932545417,0.1327747,119900.0,119890.0,0.10429]
[1754932545607,0.2809347,119900.0,119890.0,0.52458065]
[1754932545807,0.2809347,119900.0,119890.0,0.07656]
[1754932546311,0.2809347,119900.0,119890.0,0.55231065]
[1754932546312,0.2030647,119900.0,119890.0,0.55231065]
[1754932546513,0.2050647,119900.0,119890.0,0.55231065]
[1754932546705,0.2070647,119900.0,119890.0,0.10429]
[1754932546911,0.2070647,119900.0,119890.0,0.55231065]
[1754932547213,0.2799347,119900.0,119890.0,0.65221065]
[1754932547515,0.2809347,119900.0,119890.0,0.65221065]
[1754932548718,0.2809347,119900.0,119890.0,0.73482165]
[1754932548719,0.0895047,119900.0,119890.0,0.73482165]
[1754932548917,0.0061,119900.0,119890.0,0.90163765]
[1754932549112,0.0895041,119900.0,119890.0,0.90163765]
[1754932549522,0.0061,119900.0,119890.0,0.90163765]
[1754932549720,0.1668019,119910.0,119890.0,1.5163763]
[1754932550017,0.35027761,119920.0,119900.0,1.1889495]
[1754932550319,0.35027761,119920.0,119910.0,0.62617775]
[1754932550516,0.3335828,119920.0,119910.0,0.62617775]
[1754932550708,0.2501668,119930.0,119920.0,0.0833901]
[1754932550914,0.2502668,119930.0,119920.0,0.62617075]
[1754932551114,0.1668767,119930.0,119920.0,0.79293875]
[1754932552019,1.81701231,119940.0,119920.0,1.00971485]
[1754932552322,0.02427341,119940.0,119930.0,0.57400385]
[1754932552515,0.0833762,119940.0,119930.0,0.57400385]
[1754932552820,0.0833762,119940.0,119930.0,0.84066385]
[1754932553015,1.8504095,119950.0,119940.0,0.0833762]
[1754932553216,1.8902595,119950.0,119940.0,0.53139685]
[1754932553410,1.8903595,119950.0,119940.0,0.69824085]
[1754932553818,1.8903595,119950.0,119940.0,0.79814085]
[1754932554210,1.8903595,119950.0,119940.0,0.80314085]
[1754932554410,1.8903595,119950.0,119940.0,0.80914085]
[1754932554613,1.8734453,119950.0,119940.0,0.72576465]
[1754932554810,1.8734453,119950.0,119940.0,0.80914085]
[1754932555013,1.93903262,119950.0,119940.0,0.80914085]
[1754932555417,1.85565652,119950.0,119940.0,0.80914085]
[1754932555619,0.35565652,119950.0,119940.0,0.80914085]
[1754932555819,0.35565652,119950.0,119940.0,0.3611202]
[1754932556118,0.35565652,119950.0,119940.0,0.80914085]
[1754932556615,0.47799652,119950.0,119940.0,0.80914085]
[1754932556818,0.50478652,119950.0,119940.0,0.80914085]
[1754932557518,0.42141232,119950.0,119940.0,0.80914085]
[1754932557713,0.34876232,119950.0,119940.0,0.80914085]
[1754932557918,0.42141232,119950.0,119940.0,0.80914085]
[1754932559114,0.33803942,119950.0,119940.0,0.80914085]
[1754932559315,0.25466732,119950.0,119940.0,0.80914085]
[1754932559822,0.33803662,119950.0,119940.0,0.64239685]
[1754932560118,0.29901662,119950.0,119940.0,0.64239685]
[1754932560323,0.33803662,119950.0,119940.0,0.64239685]
[1754932561225,0.33803662,119950.0,119940.0,0.1943762]
[1754932561521,0.33803662,119950.0,119940.0,0.64239685]
[1754932561722,0.33948782,119950.0,119940.0,0.64239685]
[1754932561924,0.33948782,119950.0,119940.0,0.111]
[1754932562223,0.33948782,119950.0,119940.0,0.1943762]
[1754932562417,0.33948782,119950.0,119940.0,0.111]
[1754932563418,0.33948782,119950.0,119940.0,0.1943762]
[1754932563817,0.33948782,119950.0,119940.0,0.111]
[1754932564322,0.2501651,119930.0,119910.0,0.69820165]
[1754932564519,0.0833866,119930.0,119920.0,0.0833901]
[1754932564721,0.1380632,119930.0,119920.0,0.84293685]
[1754932564918,0.1598632,119930.0,119920.0,0.84293685]
[1754932565124,0.2723632,119930.0,119920.0,0.84293685]
[1754932565320,0.2723632,119930.0,119920.0,0.67615665]
[1754932565525,0.2724632,119930.0,119920.0,0.59287065]
[1754932565727,0.2724632,119930.0,119920.0,0.67626075]
[1754932565919,0.2724632,119930.0,119920.0,0.2282401]
[1754932566226,0.2724632,119930.0,119920.0,0.67626075]
[1754932566424,0.2724632,119930.0,119920.0,0.0001]
[1754932566425,0.2764632,119930.0,119920.0,0.0001]
[1754932566620,0.72448385,119930.0,119920.0,0.0001]
[1754932566820,0.2814632,119930.0,119920.0,0.0001]
[1754932567423,0.2764632,119930.0,119920.0,0.0001]
[1754932567623,0.2774632,119930.0,119920.0,0.0001]
[1754932568024,0.72548385,119930.0,119920.0,0.0001]
[1754932568528,0.2734632,119930.0,119920.0,0.0001]
[1754932568727,0.72148385,119930.0,119920.0,0.0001]
[1754932568921,0.2734632,119930.0,119920.0,0.0001]
[1754932569121,0.2724632,119930.0,119920.0,0.0001]
[1754932569426,0.2744632,119930.0,119920.0,0.0021]
[1754932569930,0.0834041,119900.0,119890.0,8e-05]
[1754932570128,0.2723841,119900.0,119890.0,0.03846]
[1754932571129,0.2723841,119900.0,119890.0,8e-05]
[1754932571335,0.2784841,119900.0,119890.0,0.00018]
[1754932571921,0.2784841,119900.0,119890.0,0.14493]
[1754932572124,0.2784841,119900.0,119890.0,0.59295065]
[1754932572328,0.2867438,119900.0,119890.0,0.14493]
[1754932572529,0.2867438,119900.0,119890.0,0.00018]
[1754932572729,0.2917438,119900.0,119890.0,0.00118]
[1754932573234,0.2917438,119900.0,119890.0,0.03956]
[1754932573532,0.2917438,119900.0,119890.0,0.48758065]
[1754932573734,0.2917438,119900.0,119890.0,0.03956]
[1754932574126,0.2917438,119900.0,119890.0,0.59395065]
[1754932574323,0.2917438,119900.0,119890.0,0.14593]
[1754932574527,0.2917438,119900.0,119890.0,0.59395065]
[1754932574933,0.2917438,119900.0,119890.0,0.14593]
[1754932575136,0.2917438,119900.0,119890.0,0.59395065]
[1754932575336,0.2834841,119900.0,119890.0,0.67736155]
[1754932575530,0.2108341,119900.0,119890.0,0.67736155]
[1754932575730,0.1343541,119900.0,119890.0,0.71363155]
[1754932576231,0.1343541,119900.0,119890.0,0.2656109]
[1754932576426,0.1733741,119900.0,119890.0,0.71363155]
[1754932576935,0.1343541,119900.0,119890.0,0.71363155]
[1754932577124,0.2834841,119900.0,119890.0,0.71363155]
[1754932577330,0.2834841,119900.0,119890.0,0.81343155]
[1754932577733,0.2834841,119900.0,119890.0,0.73002065]
[1754932577930,0.2834841,119900.0,119890.0,0.77716155]
[1754932578326,0.2834841,119900.0,119890.0,0.24573]
[1754932578533,0.2834841,119900.0,119890.0,0.10098]
[1754932582336,0.73150475,119900.0,119890.0,0.10098]
[1754932582532,0.2834841,119900.0,119890.0,0.10098]
[1754932583030,0.2834841,119900.0,119850.0,0.1952386]
[1754932583031,0.0834317,119860.0,119850.0,0.1952386]
[1754932583235,0.2693017,119860.0,119850.0,0.2677387]
[1754932583537,0.18587,119860.0,119850.0,0.81555935]
[1754932583737,0.14704,119860.0,119850.0,0.71575935]
[1754932583938,0.2304717,119860.0,119850.0,0.81575935]
[1754932584134,0.2305717,119860.0,119850.0,0.81585935]
[1754932584439,0.27887703,119860.0,119850.0,0.81585935]
[1754932584644,0.27887703,119860.0,119850.0,0.3678387]
[1754932584939,0.27887703,119860.0,119850.0,0.81585935]
[1754932585139,0.27887703,119860.0,119850.0,0.3678387]
[1754932585339,0.27887703,119860.0,119850.0,0.81585935]
[1754932585539,0.27887703,119860.0,119850.0,0.3678387]
[1754932585738,0.27987703,119860.0,119850.0,0.3678387]
[1754932586434,0.27987703,119860.0,119850.0,0.3362687]
[1754932586835,0.30787164,119860.0,119850.0,0.81585935]
[1754932587135,0.34670164,119860.0,119850.0,0.3678387]
[1754932587841,0.34670164,119860.0,119850.0,0.14221]
[1754932588533,0.79472229,119860.0,119850.0,0.1001]
[1754932589036,0.0834595,119820.0,119810.0,0.61495145]
[1754932589241,0.0834595,119820.0,119810.0,0.70049783]
[1754932589740,0.0834595,119820.0,119810.0,0.79925145]
[1754932590140,0.1042895,119820.0,119810.0,0.2677665]
[1754932590337,0.2694295,119820.0,119810.0,0.2688665]
[1754932590745,0.0001,119820.0,119810.0,0.71688715]
[1754932591242,0.2305995,119820.0,119810.0,0.2688665]
[1754932591538,0.14714,119820.0,119810.0,0.2688665]
[1754932591845,0.0001,119820.0,119810.0,0.71688715]
[1754932592036,0.0001,119820.0,119810.0,0.71888715]
[1754932592933,0.2503478,119840.0,119830.0,0.0834526]
[1754932593140,0.2503478,119840.0,119830.0,0.2677526]
[1754932593141,0.3710878,119840.0,119830.0,0.2677526]
[1754932593442,0.4362178,119840.0,119830.0,0.13206]
[1754932593745,0.1669155,119830.0,119820.0,0.0834595]
[1754932594135,0.0834595,119820.0,119810.0,0.1689215]
[1754932594334,0.1569495,119820.0,119810.0,0.1580665]
[1754932594531,0.1042895,119820.0,119810.0,0.60508715]
[1754932594946,0.1042895,119820.0,119810.0,0.71688715]
[1754932595239,0.1042895,119820.0,119810.0,0.2688665]
[1754932595443,0.1787795,119820.0,119810.0,0.2708665]
[1754932596040,0.1052895,119820.0,119810.0,0.71888715]
[1754932596240,0.0844595,119820.0,119810.0,0.2708665]
[1754932596547,0.1052895,119820.0,119810.0,0.71888715]
[1754932596750,0.0844595,119820.0,119810.0,0.2708665]
[1754932596944,0.0844595,119820.0,119810.0,0.71888715]
[1754932598239,0.0844595,119820.0,119810.0,0.1874]
[1754932598640,0.2314995,119820.0,119810.0,0.1874]
[1754932598854,0.2703295,119820.0,119810.0,0.1874]
[1754932599040,0.2703295,119820.0,119810.0,0.15583]
[1754932599448,0.71835015,119820.0,119810.0,0.15583]
[1754932599647,0.2703295,119820.0,119810.0,0.13516]
[1754932599849,0.2723295,119820.0,119810.0,0.07274]
[1754932600246,0.2723295,119820.0,119810.0,0.0031]
[1754932600647,0.2713295,119820.0,119810.0,0.04221]
[1754932600851,0.2324995,119820.0,119810.0,0.2678665]
[1754932601245,0.02383,119820.0,119810.0,0.71588715]
[1754932601453,0.003,119820.0,119810.0,0.71588715]
[1754932601651,0.0864595,119820.0,119810.0,0.71588715]
[1754932602249,0.0864595,119820.0,119810.0,0.2678665]
[1754932602555,0.0864595,119820.0,119810.0,0.71588715]
[1754932602759,0.1599495,119820.0,119810.0,0.71588715]
[1754932602946,0.0864595,119820.0,119810.0,0.71588715]
[1754932603252,0.1807795,119820.0,119810.0,0.2678665]
[1754932603450,0.1600095,119820.0,119810.0,0.2678665]
[1754932603649,0.2334995,119820.0,119810.0,0.2678665]
[1754932603857,0.2723295,119820.0,119810.0,0.1844]
[1754932604042,0.72035015,119820.0,119810.0,0.0001]
[1754932604553,0.48925751,119820.0,119810.0,0.0001]
[1754932604851,0.2723295,119820.0,119810.0,0.1256765]
[1754932605052,0.2723295,119820.0,119810.0,0.1913265]
[1754932605452,0.15004,119820.0,119810.0,0.68431715]
[1754932605651,0.15004,119820.0,119810.0,0.71588715]
[1754932605850,0.2334995,119820.0,119810.0,0.71588715]
[1754932606048,0.2334995,119820.0,119810.0,0.0001]
[1754932606258,0.72035015,119820.0,119810.0,0.0001]
[1754932607755,0.2723295,119820.0,119810.0,0.0001]
[1754932607957,0.72035015,119820.0,119810.0,0.0001]
[1754932608553,0.85885015,119820.0,119810.0,0.0001]
[1754932610060,0.0834804,119790.0,119780.0,0.1221974]
[1754932610256,0.1557604,119790.0,119780.0,0.09125]
[1754932610455,0.2648004,119790.0,119780.0,0.13115]
[1754932610758,0.2648004,119790.0,119780.0,0.03871]
[1754932610956,0.71282105,119790.0,119780.0,0.0001]
[1754932611159,0.71292105,119790.0,119780.0,0.0002]
[1754932611462,0.71292105,119790.0,119780.0,0.01325226]
[1754932611762,0.78977966,119790.0,119780.0,0.01325226]
[1754932612058,0.2505217,119760.0,119740.0,0.2505375]
[1754932612255,0.3445023,119750.0,119730.0,0.1670371]
[1754932612450,0.21882756,119750.0,119740.0,0.18522]
[1754932612652,0.04815899,119760.0,119740.0,0.75273245]
[1754932612852,0.3907644,119750.0,119740.0,0.13604]
[1754932613355,0.01693899,119760.0,119740.0,0.88378265]
[1754932613559,0.18404489,119760.0,119750.0,0.1936183]
[1754932613762,0.18404489,119760.0,119750.0,0.18522]
[1754932613956,0.0835083,119750.0,119740.0,0.0001]
[1754932614256,0.2237383,119750.0,119740.0,0.15672]
[1754932614454,0.2609883,119750.0,119740.0,0.13715]
[1754932615055,0.2619883,119750.0,119740.0,0.0061]
[1754932615354,0.2619883,119750.0,119740.0,1e-07]
[1754932615555,0.71000895,119750.0,119740.0,1e-07]
[1754932615758,0.2619883,119750.0,119740.0,0.0386101]
[1754932616358,0.2252583,119750.0,119740.0,0.1310501]
[1754932616561,0.2253583,119750.0,119740.0,0.1853201]
[1754932617162,0.70910895,119750.0,119740.0,0.0001]
[1754932617459,0.71010895,119750.0,119740.0,0.0001]
[1754932617661,0.71410895,119750.0,119740.0,0.0001]
[1754932617856,0.2660883,119750.0,119740.0,0.0001]
[1754932618063,0.71310895,119750.0,119740.0,0.0001]
[1754932618260,0.64182895,119750.0,119740.0,0.0001]
[1754932618563,0.1938083,119750.0,119740.0,0.0001]
[1754932618762,0.64182895,119750.0,119740.0,0.0001]
[1754932620263,0.64182895,119750.0,119740.0,1e-07]
[1754932620458,0.1937083,119750.0,119740.0,1e-07]
[1754932621070,0.1937083,119750.0,119720.0,0.07851]
[1754932621071,0.0835287,119720.0,119710.0,0.1714]
[1754932621258,0.1519987,119720.0,119710.0,0.1714]
[1754932621567,0.1519987,119720.0,119710.0,0.0999]
[1754932621753,0.1887287,119720.0,119710.0,0.21001]
[1754932621958,0.0835287,119720.0,119710.0,0.21001]
[1754932622166,0.12929014,119720.0,119710.0,0.21011]
[1754932622357,0.16051014,119720.0,119710.0,0.21011]
[1754932622559,0.09304014,119720.0,119710.0,0.21011]
[1754932622860,0.0846287,119720.0,119710.0,0.65813065]
[1754932623068,0.0846287,119720.0,119710.0,0.21011]
[1754932623565,0.0940033,119720.0,119710.0,0.21011]
[1754932624068,0.0940033,119720.0,119710.0,0.73324065]
[1754932624461,0.0856287,119720.0,119710.0,0.81677635]
[1754932624656,0.2505765,119730.0,119710.0,0.98374035]
[1754932624870,0.2505765,119730.0,119720.0,0.55813065]
[1754932625060,0.2505765,119730.0,119720.0,0.71676935]
[1754932625261,0.2505765,119730.0,119720.0,0.63324065]
[1754932625459,0.09201551,119740.0,119730.0,0.0835217]
[1754932625460,0.1670361,119740.0,119730.0,0.0835217]
[1754932625667,0.2505565,119740.0,119730.0,0.71676165]
[1754932625865,0.26902764,119750.0,119730.0,1.02571975]
[1754932626061,0.26902764,119750.0,119740.0,0.64164465]
[1754932626375,0.083507,119750.0,119740.0,0.64164465]
[1754932626571,0.083507,119750.0,119740.0,1.02569345]
[1754932626872,0.06548429,119760.0,119750.0,0.9795484]
[1754932627066,0.0001,119760.0,119750.0,1.0111484]
[1754932627261,0.0001,119760.0,119750.0,1.1781564]
[1754932627459,0.0001,119760.0,119750.0,1.2281564]
[1754932627663,0.14943068,119780.0,119770.0,0.0834932]
[1754932627859,0.1669533,119800.0,119790.0,0.0834793]
[1754932628065,0.250411,119810.0,119800.0,0.0834723]
[1754932628267,0.250411,119810.0,119800.0,0.53149295]
[1754932628764,0.0834722,119800.0,119790.0,0.1669489]
[1754932628963,0.0834722,119800.0,119790.0,0.61506955]
[1754932629163,0.1670401,119810.0,119790.0,0.86550085]
[1754932629468,0.0835696,119810.0,119800.0,0.0834722]
[1754932629667,0.0835696,119810.0,119800.0,0.53149285]
[1754932629971,0.1613896,119810.0,119800.0,0.0999]
[1754932630166,0.1926096,119810.0,119800.0,0.0999]
[1754932630372,0.64063025,119810.0,119800.0,0.0999]
[1754932630865,0.64163025,119810.0,119800.0,0.0999]
[1754932631171,0.64263025,119810.0,119800.0,0.1009]
[1754932631664,0.64463025,119810.0,119800.0,0.1009]
[1754932631865,0.81157365,119810.0,119790.0,0.0001]
[1754932632073,0.64053295,119800.0,119790.0,0.0001]
[1754932632667,0.0835002,119760.0,119750.0,0.48792065]
[1754932632864,0.1925402,119760.0,119750.0,0.09655]
[1754932633375,0.1925402,119760.0,119750.0,0.1800571]
[1754932633972,0.20104071,119760.0,119750.0,0.05794]
[1754932634277,0.20114071,119760.0,119750.0,0.05804]
[1754932634478,0.1926402,119760.0,119750.0,0.05804]
[1754932634784,0.2075524,119780.0,119770.0,0.0834932]
[1754932634970,0.2910458,119780.0,119770.0,0.62806385]
[1754932635170,0.04057,119780.0,119770.0,0.1800432]
[1754932635367,0.44407495,119800.0,119780.0,0.1669689]
[1754932635570,0.04057,119790.0,119780.0,0.65359955]
[1754932635777,0.44407495,119800.0,119790.0,0.0834793]
[1754932635978,0.20874815,119800.0,119790.0,0.58814995]
[1754932636174,0.06641051,119800.0,119790.0,0.62804995]
[1754932636769,0.2909565,119820.0,119810.0,0.0834654]
[1754932636969,0.3710751,119830.0,119810.0,0.73298265]
[1754932637168,0.124025,119830.0,119820.0,0.56604905]
[1754932637375,0.26716121,119840.0,119820.0,0.56604905]
[1754932637573,0.29031004,119840.0,119830.0,0.57254205]
[1754932637773,0.33061004,119840.0,119830.0,0.55372205]
[1754932638073,0.33071004,119840.0,119830.0,0.1058014]
[1754932638271,0.28071004,119840.0,119830.0,0.1158014]
[1754932638472,0.31390004,119840.0,119830.0,0.1158014]
[1754932638883,0.24041004,119840.0,119830.0,0.58264205]
[1754932639078,0.24041004,119840.0,119830.0,0.1158014]
[1754932639383,0.31390004,119840.0,119830.0,0.56382205]
[1754932640278,0.31390004,119840.0,119830.0,0.1158014]
[1754932640586,0.31690004,119840.0,119830.0,0.0101]
[1754932641082,0.31590004,119840.0,119830.0,0.0101]
[1754932641383,0.31790004,119840.0,119830.0,0.0958614]
[1754932641583,0.31790004,119840.0,119830.0,0.1158014]
[1754932641882,0.28471004,119840.0,119830.0,0.1158014]
[1754932642082,0.28271004,119840.0,119830.0,0.1158014]
[1754932642277,0.19414253,119840.0,119830.0,0.53586514]
[1754932642785,0.07012803,119840.0,119830.0,0.53586514]
[1754932643170,0.15357253,119840.0,119830.0,0.53586514]
[1754932643376,0.19735253,119840.0,119830.0,0.53586514]
[1754932643582,0.23765253,119840.0,119830.0,0.51704514]
[1754932643782,0.23365253,119840.0,119830.0,0.51704514]
[1754932643975,0.23665253,119840.0,119830.0,0.51804514]
[1754932644470,0.26784253,119840.0,119830.0,0.0945514]
[1754932644781,0.26784253,119840.0,119830.0,0.1168014]
[1754932645081,0.26884253,119840.0,119830.0,0.1168014]
[1754932645278,0.19535253,119840.0,119830.0,0.1356214]
[1754932645676,0.19535253,119840.0,119830.0,0.53686514]
[1754932646277,0.26784253,119840.0,119830.0,0.1158014]
[1754932646477,0.26884253,119840.0,119830.0,0.1168014]
[1754932646682,0.26784253,119840.0,119830.0,0.1168014]
[1754932646882,0.26884253,119840.0,119830.0,0.1168014]
[1754932647084,0.19435253,119840.0,119830.0,0.1346214]
[1754932647280,0.15157273,119840.0,119830.0,0.1356214]
[1754932647583,0.06812803,119840.0,119830.0,0.1356214]
[1754932647784,0.15157273,119840.0,119830.0,0.1356214]
[1754932648085,0.23565273,119840.0,119830.0,0.1356214]
[1754932648479,0.26884273,119840.0,119830.0,0.0111]
[1754932648875,0.166941,119810.0,119800.0,0.0834705]
[1754932649075,0.0834656,119810.0,119800.0,0.272663]
[1754932649287,0.0834656,119810.0,119800.0,0.62035444]
[1754932649687,0.1272387,119820.0,119810.0,0.0834603]
[1754932649878,0.1272387,119820.0,119810.0,0.1057103]
[1754932649879,0.2007287,119820.0,119810.0,0.1057103]
[1754932650079,0.2008287,119820.0,119810.0,0.1058103]
[1754932650683,0.11737,119820.0,119810.0,0.1058103]
[1754932650876,0.0001,119820.0,119810.0,0.3026583]
[1754932651080,0.0011,119820.0,119810.0,0.3036583]
[1754932651386,0.04488,119820.0,119810.0,0.3036583]
[1754932651585,0.2018288,119820.0,119810.0,0.2737383]
[1754932652290,0.2018288,119820.0,119810.0,0.3036583]
[1754932652584,0.1686388,119820.0,119810.0,0.1367303]
[1754932653585,0.08518,119820.0,119810.0,0.1367303]
[1754932653985,0.04488,119820.0,119810.0,0.1367303]
[1754932654286,0.0011,119820.0,119810.0,0.1367303]
[1754932654591,0.0011,119820.0,119810.0,0.3036583]
[1754932655087,0.06602803,119840.0,119830.0,0.0834518]
[1754932655279,0.2503252,119850.0,119840.0,0.0834448]
[1754932655482,0.3238152,119850.0,119840.0,0.1056948]
[1754932655884,0.3675952,119850.0,119840.0,0.1056948]
[1754932656285,0.3675952,119850.0,119840.0,0.0857548]
[1754932656490,0.3676952,119850.0,119840.0,0.0835448]
[1754932656785,0.3676952,119850.0,119840.0,0.1834448]
[1754932656990,0.3676952,119850.0,119840.0,0.1857548]
[1754932657188,0.27163141,119850.0,119840.0,0.2056948]
[1754932657491,0.15800351,119850.0,119840.0,0.63575854]
[1754932657689,0.11770351,119850.0,119840.0,0.63575854]
[1754932657990,0.07292351,119850.0,119840.0,0.63575854]